[Event "AUT Bundesliga Women 2021-22"]
[Site "Austria"]
[Date "2022.04.23"]
[Round "9.18"]
[White "Motycakova, Monika"]
[Black "Kejzar, Petra"]
[Result "0-1"]
[ECO "B81"]
[WhiteElo "2102"]
[BlackElo "2072"]
[Annotator "TA"]
[PlyCount "74"]
[EventDate "2021.11.06"]
[EventType "team-tourn"]
[EventCountry "AUT"]
[SourceTitle "playchess.com"]
[Source "ChessBase"]
[SourceQuality "1"]
[TimeControl "40/5400+30:1800+30"]

{[%evp 24,74,47,54,114,103,112,115,113,111,153,150,141,110,274,114,139,76,85,88,200,29,22,22,27,29,44,40,41,50,58,0,39,0,77,0,0,0,21,0,0,0,0,-428,-418,-1246,-1268,-1310,-1307,-6402,-6083,-6418,-6408]} 1. e4 {[%emt 0:00:02]} c5 {[%emt 0:00:05]} 2. Nf3 {[%emt 0:00:03]} e6 {[%emt 0:00:04]} 3. d4 {[%emt 0:00:05]} cxd4 {[%emt 0:00:03]} 4. Nxd4 {[%emt 0:00:05]} Nf6 {[%emt 0:00:04]} 5. Nc3 {[%emt 0:00:09]} d6 {[%emt 0:00:02]} 6. g4 {[%emt 0:00:35]} h6 {[%emt 0:00:09]} 7. h4 {[%emt 0:00:06]} Nc6 {[%emt 0:00:13]} 8. Rg1 {[%emt 0:00:41]} h5 {[%emt 0:00:06]} 9. gxh5 {[%emt 0:01:02]} Nxh5 {[%emt 0:00:08]} 10. Bg5 {[%emt 0:00:20]} Nf6 {[%emt 0:00:11]} 11. Rg3 {[%emt 0:00:09]} a6 {[%emt 0:07:15]} 12. Nxc6 {[%emt 0:01:30]} bxc6 {[%emt 0:00:20]} 13. Qf3 {[%emt 0:00:08]} e5 {[%emt 0:08:18] B81: Sicilian Scheveningen: Keres Attack.} ({Black should play} 13... Qc7 $14) 14. Bc4 $16 {[%emt 0:22:56]} Be6 {[%emt 0:04:48]} 15. Bxe6 {[%emt 0:02:13]} fxe6 {[%emt 0:00:01] White is better.} 16. O-O-O {[%emt 0:00:15][%cal Oh4h5]} Ra7 {[%emt 0:14:52]} 17. Qe2 {[%emt 0:16:54]} Qc8 {[%emt 0:07:25] [#]} 18. Na4 $146 {[%emt 0:13:35] Black must now prevent Nb6.} ({Predecessor:} 18. Qc4 Kf7 19. Rdg1 Nh5 20. Rf3+ Kg8 21. Ne2 Rf7 22. Rxf7 Kxf7 23. Ng3 Nf4 24. Bxf4 exf4 {1-0 (60) Rooze,J (2271)-Wahlbom,M (2311) Dresden 2010}) 18... c5 $2 {[%emt 0:16:24]} (18... Rb7 $16 {keeps fighting.}) 19. Qc4 {[%emt 0:09:06]} (19. Nb6 $18 {is the precise move to win.} Qc6 20. Nc4) 19... Kf7 {[%emt 0:02:59]} 20. f4 {[%emt 0:03:56]} (20. Nc3 $142) 20... exf4 {[%emt 0:04:25]} (20... d5 21. exd5 exd5 22. Qf1 exf4 23. Qxf4 $16) 21. Rf3 {[%emt 0:00:56]} ({Of course not} 21. Bxf4 Rxh4 22. Rf3 (22. Bxd6 Bxd6 23. Rxd6 Rxe4 $11) 22... d5 23. exd5 exd5 $11) 21... Qc6 {[%emt 0:01:14]} (21... d5 $2 22. exd5 e5 23. b4 $18 (23. d6+ Qe6 $18)) (21... Qb8 $16 {was necessary.}) 22. Rxf4 $2 {[%emt 0:01:49]} (22. Nc3 $18) 22... Qb5 $11 {[%emt 0:00:59]} 23. e5 {[%emt 0:06:58]} dxe5 {[%emt 0:02:59] [#]} 24. Nc3 $1 {[%emt 0:10:18]} Qb4 {[%emt 0:02:48] [#] The board is on fire.} (24... Qxc4 25. Rxc4) 25. a3 $1 {[%emt 0:03:37]} Qxc4 {[%emt 0:04:56]} 26. Rxc4 {[%emt 0:00:02]} Be7 {[%emt 0:00:18]} 27. Ne4 {[%emt 0:05:13]} (27. Rf1 $14) 27... Rd7 {[%emt 0:13:53]} 28. Nxc5 {[%emt 0:01:11]} Rxd1+ {[%emt 0:03:21]} 29. Kxd1 {[%emt 0:00:01]} Nd5 $1 {[%emt 0:00:11]} 30. Ne4 {[%emt 0:00:31]} Kg6 {[%emt 0:02:34] Hoping for ...Bxg5.} 31. Rc6 {[%emt 0:00:27][%csl LRa6,LRe6]} Bxg5 {[%emt 0:01:04]} (31... Kf5 {seems wilder.} 32. Nd6+ Kg6 33. c4 Bxg5 34. hxg5 Rh1+) 32. Nxg5 {[%emt 0:00:10]} Rxh4 {[%emt 0:01:15]} 33. Rxe6+ $2 {[%emt 0:00:13][%mdl 8192]} (33. Nxe6 $11 {and White is okay.} a5 34. Ke1 (34. Nf4+ Kf5 $11)) 33... Kf5 $19 {[%emt 0:01:14]} 34. Rxe5+ {[%emt 0:00:36]} (34. c3 $142) 34... Kxe5 {[%emt 0:00:24] Black is clearly winning.} 35. Nf3+ {[%emt 0:00:02]} Ke4 {[%emt 0:00:55]} 36. Nxh4 {[%emt 0:00:02] [#]} Nf4 $1 {[%emt 0:00:35] Threatens to win with ...g5.} 37. b4 {[%emt 0:02:11]} g5 {[%emt 0:00:05] Weighted Error Value: White=1.05/Black=0.18 (very precise)} 0-1

[Event "AUT Bundesliga Women 2021-22"]
[Site "Austria"]
[Date "2022.04.23"]
[Round "9.19"]
[White "Hiebler, Laura"]
[Black "Kurapova, Olga"]
[Result "1/2-1/2"]
[ECO "A11"]
[WhiteElo "2021"]
[BlackElo "1893"]
[Annotator "TA"]
[PlyCount "86"]
[EventDate "2021.11.06"]
[EventType "team-tourn"]
[EventCountry "AUT"]
[SourceTitle "playchess.com"]
[Source "ChessBase"]
[SourceQuality "1"]
[TimeControl "40/5400+30:1800+30"]

{[%evp 9,86,-19,-10,-28,-22,-19,-8,-24,-30,-69,-65,-66,-52,-65,-55,-97,-93,-90,-94,-99,-95,-100,-72,-70,-100,-107,-64,-64,-14,-53,-53,-53,-54,-56,-36,-25,-40,-56,-55,-42,-46,-56,-51,-49,0,0,0,0,0,0,0,0,0,0,0,0,0,0,0,0,2,7,8,7,18,0,0,0,0,0,0,0,0,0,8,8,8,8,8]} 1. c4 {[%emt 0:00:04]} c6 {[%emt 0:00:06]} 2. g3 {[%emt 0:00:12]} d5 {[%emt 0:00:18]} 3. Bg2 {[%emt 0:00:45]} Nf6 {[%emt 0:02:19]} 4. Nf3 {[%emt 0:03:01]} dxc4 {[%emt 0:05:56]} 5. Nc3 {[%emt 0:02:27]} Nbd7 {[%emt 0:02:18]} 6. O-O {[%emt 0:10:23] A11: English Opening: 1...c6.} e5 {[%emt 0:02:23]} 7. Qc2 {[%emt 0:03:10]} Bd6 {[%emt 0:06:47] [#]} 8. Rd1 $146 {[%emt 0:12:28]} ({Predecessor:} 8. Ne4 Nxe4 9. Qxe4 Nf6 10. Qxc4 Be6 11. Qc2 Qc7 12. d4 Nd7 13. b3 f6 14. dxe5 Nxe5 {0-1 (34) Szente Varga,F (2025)-Kabai,Z (2089) Budapest 2012}) 8... O-O {[%emt 0:02:58]} 9. d4 {[%emt 0:05:00] [#] Threatens to win with dxe5.} cxd3 $1 {[%emt 0:00:48]} 10. Qxd3 {[%emt 0:00:42]} Bc7 {[%emt 0:05:11]} 11. Qc2 {[%emt 0:15:06]} Qe7 {[%emt 0:00:32]} 12. Bg5 {[%emt 0:01:08]} h6 {[%emt 0:00:47]} 13. Be3 {[%emt 0:01:10]} Bb6 {[%emt 0:02:02]} 14. Bxb6 {[%emt 0:04:14]} Nxb6 {[%emt 0:00:10][%cal Bd7b6,Bb6d5,Bd5e7,Be7f5,Bf5d4,Bd4f3][%mdl 32]} 15. Ne4 {[%emt 0:06:26]} Bf5 {[%emt 0:01:18]} 16. Nxf6+ {[%emt 0:00:27]} Qxf6 {[%emt 0:00:03]} 17. Qc5 {[%emt 0:01:52]} Nd5 {[%emt 0:01:53]} 18. Nd2 {[%emt 0:03:43] [#] e4 is the strong threat.} Qe7 {[%emt 0:01:57]} ({Better is} 18... Bg4 $15 19. Ne4 Qe6) 19. Qxe7 {[%emt 0:03:14]} (19. Nb3 $5 {[%cal Rd1d5]} b6 20. Qxc6 $11) 19... Nxe7 {[%emt 0:00:03]} 20. Nc4 {[%emt 0:00:06]} f6 {[%emt 0:04:35]} 21. Nd6 {[%emt 0:00:48]} Rab8 {[%emt 0:08:02]} (21... Bc2 $5 {[%cal Rc2d1]} 22. Rdc1 Bg6 $15) 22. Nxf5 {[%emt 0:05:16]} Nxf5 {[%emt 0:02:56]} 23. Bh3 {[%emt 0:00:37]} Nd4 {[%emt 0:00:10]} 24. e3 {[%emt 0:01:23]} Nf3+ {[%emt 0:00:54]} 25. Kg2 {[%emt 0:00:30]} Ng5 {[%emt 0:00:02] Prevents Be6+.} 26. Rd7 {[%emt 0:01:26]} Rfd8 {[%emt 0:04:45]} (26... Nxh3 $15 {is more appropriate.} 27. Kxh3 Rf7) 27. Rad1 $11 {[%emt 0:00:31] The position is equal.} Rxd7 {[%emt 0:00:31]} 28. Rxd7 {[%emt 0:00:15]} Nxh3 {[%emt 0:03:47]} 29. Kxh3 {[%emt 0:00:06][%mdl 4096] Endgame KR-KR} a5 {[%emt 0:00:07]} 30. Rc7 {[%emt 0:02:59]} Kh7 {[%emt 0:01:49]} 31. Kg2 {[%emt 0:01:50]} f5 {[%emt 0:04:41]} 32. Re7 {[%emt 0:02:35]} e4 {[%emt 0:00:03]} 33. Re5 {[%emt 0:00:35]} Kg6 {[%emt 0:02:10]} 34. Rxa5 {[%emt 0:00:22]} Rd8 {[%emt 0:02:17]} 35. Ra7 {[%emt 0:01:40]} Rd7 {[%emt 0:01:01]} 36. a4 {[%emt 0:00:11][%cal Ba2a4,Ba4a5][%mdl 32]} Kf6 {[%emt 0:00:11]} 37. b4 {[%emt 0:00:38]} Ke6 {[%emt 0:00:14]} 38. a5 {[%emt 0:00:58]} Kd6 {[%emt 0:01:08]} 39. Ra8 {[%emt 0:01:22]} c5 {[%emt 0:07:34]} 40. bxc5+ {[%emt 0:09:19]} Kxc5 {[%emt 0:01:20]} 41. Ra7 {[%emt 0:05:52] Hoping for a6.} Kc6 {[%emt 0:01:55]} 42. a6 {[%emt 0:03:00]} bxa6 {[%emt 0:01:06]} 43. Rxa6+ {[%emt 0:00:06]} Kd5 {[%emt 0:00:28] Weighted Error Value: White=0.06 (flawless) /Black=0.07 (flawless)} 1/2-1/2

[Event "AUT Bundesliga Women 2021-22"]
[Site "Austria"]
[Date "2022.04.23"]
[Round "9.20"]
[White "Pribozic, Sabrina"]
[Black "Krassnitzer, Julia"]
[Result "1/2-1/2"]
[ECO "A49"]
[WhiteElo "1624"]
[BlackElo "1793"]
[Annotator "NA RC COMBH"]
[PlyCount "129"]
[EventDate "2021.11.06"]
[EventType "team-tourn"]
[EventCountry "AUT"]
[SourceTitle "playchess.com"]
[Source "ChessBase"]
[SourceQuality "1"]
[TimeControl "40/5400+30:1800+30"]

1. d4 {[%emt 0:00:03]} Nf6 {[%emt 0:00:06]} 2. Nf3 {[%emt 0:01:10]} g6 {[%emt 0:00:33]} 3. g3 {[%emt 0:01:23]} Bg7 {[%emt 0:00:06]} 4. Bg2 {[%emt 0:01:10]} d6 {[%emt 0:00:57]} 5. O-O {[%emt 0:03:53]} Nbd7 {[%emt 0:01:26]} 6. Re1 {[%emt 0:07:49]} O-O {[%emt 0:11:10]} 7. c4 {[%emt 0:02:44]} e5 {[%emt 0:07:25]} 8. e3 {[%emt 0:05:20]} c6 {[%emt 0:02:19]} 9. Nc3 {[%emt 0:11:17]} h6 {[%emt 0:15:54]} 10. b3 {[%emt 0:05:26]} e4 {[%emt 0:10:48]} 11. Nd2 {[%emt 0:00:53]} d5 {[%emt 0:00:08]} 12. f3 {[%emt 0:05:07]} exf3 {[%emt 0:01:16]} 13. Qxf3 {[%emt 0:01:13]} Nb6 {[%emt 0:05:42]} 14. Bb2 {[%emt 0:09:01]} Bg4 {[%emt 0:02:58]} 15. Qf2 {[%emt 0:02:30]} Be6 {[%emt 0:00:32]} 16. cxd5 {[%emt 0:02:06]} cxd5 {[%emt 0:03:52]} 17. Ba3 {[%emt 0:02:59]} Re8 {[%emt 0:01:46]} 18. Rac1 {[%emt 0:03:45]} a6 {[%emt 0:00:55]} 19. Nf3 {[%emt 0:08:04]} Ng4 {[%emt 0:01:07]} 20. Qd2 {[%emt 0:01:44]} Nc8 {[%emt 0:08:31]} 21. h3 {[%emt 0:05:35]} Nf6 {[%emt 0:00:10]} 22. Ne5 {[%emt 0:00:16]} Nd7 {[%emt 0:06:36]} 23. Nf3 {[%emt 0:00:38]} Nf6 {[%emt 0:00:11]} 24. Ne5 {[%emt 0:00:05]} Nh5 {[%emt 0:00:23]} 25. g4 {[%emt 0:00:55]} Nf6 {[%emt 0:00:28]} 26. Qc2 {[%emt 0:02:10]} Ne7 {[%emt 0:02:47]} 27. Ne2 {[%emt 0:01:23]} Qa5 {[%emt 0:01:58]} 28. Qc5 {[%emt 0:02:11]} Qd2 {[%emt 0:01:24]} 29. Qc3 {[%emt 0:00:12]} Qxc3 {[%emt 0:01:11]} 30. Rxc3 {[%emt 0:00:16]} Ne4 {[%emt 0:02:56]} 31. Bxe4 {[%emt 0:00:45]} dxe4 {[%emt 0:00:22]} 32. Ng3 {[%emt 0:01:35]} Nd5 {[%emt 0:05:30]} 33. Rcc1 {[%emt 0:01:07]} f5 {[%emt 0:00:16]} 34. Nxg6 {[%emt 0:01:15]} fxg4 {[%emt 0:00:24]} 35. hxg4 {[%emt 0:00:47]} Bxg4 {[%emt 0:00:09]} 36. Nf4 {[%emt 0:00:28]} Nxf4 {[%emt 0:00:25]} 37. exf4 {[%emt 0:00:23]} Bxd4+ {[%emt 0:00:10]} 38. Kh2 {[%emt 0:01:27]} e3 {[%emt 0:04:02]} 39. Rc4 {[%emt 0:01:21]} Bb6 {[%emt 0:00:38]} 40. Bc5 {[%emt 0:00:25]} Bxc5 {[%emt 0:01:18]} 41. Rxc5 {[%emt 0:30:07]} Rad8 {[%emt 0:31:12]} 42. Re5 {[%emt 0:03:24]} Rxe5 {[%emt 0:00:00]} 43. fxe5 {[%emt 0:00:00]} Rd2+ {[%emt 0:00:00]} 44. Kg1 {[%emt 0:00:00]} e2 {[%emt 0:00:00]} 45. Ne4 {[%emt 0:00:00]} Rd1 {[%emt 0:00:00]} 46. Kf2 {[%emt 0:00:00]} Rxe1 {[%emt 0:00:00]} 47. Kxe1 {[%emt 0:00:00]} Bf3 {[%emt 0:00:00]} 48. Nd2 {[%emt 0:00:00]} Bh5 {[%emt 0:00:00]} 49. Ne4 {[%emt 0:00:00]} Kf8 {[%emt 0:00:00]} 50. Nc5 {[%emt 0:00:00]} Bf3 {[%emt 0:00:00]} 51. Nd3 {[%emt 0:00:00]} b6 {[%emt 0:00:00]} 52. a3 {[%emt 0:00:00]} Ke7 {[%emt 0:00:00]} 53. Kf2 {[%emt 0:00:00]} Bg4 {[%emt 0:00:00]} 54. Kg3 {[%emt 0:00:00]} Bf5 {[%emt 0:00:00]} 55. Ne1 {[%emt 0:00:00]} Ke6 {[%emt 0:00:00]} 56. Kf4 {[%emt 0:00:00]} Bg6 {[%emt 0:00:00]} 57. Ng2 {[%emt 0:00:00]} a5 {[%emt 0:00:00]} 58. Ne1 {[%emt 0:00:00]} b5 {[%emt 0:00:00]} 59. Nf3 {[%emt 0:00:00]} b4 {[%emt 0:00:00]} 60. axb4 {[%emt 0:00:00]} axb4 {[%emt 0:00:00]} 61. Nd4+ {[%emt 0:00:00]} Kd5 {[%emt 0:03:15]} 62. Nxe2 {[%emt 0:00:00]} Bc2 {[%emt 0:00:48]} 63. Nc1 {[%emt 0:00:00]} h5 {[%emt 0:01:17]} 64. Kg5 {[%emt 0:00:00]} Kxe5 {[%emt 0:04:56]} 65. Na2 {[%emt 0:00:00]} 1/2-1/2